fUST/lending_fUST_20250406
["ID","MTS","AMOUNT","RATE_DAILY","PERIOD"]
[357189437,1743876634077,-152.0,0.00018647,2]
[357189438,1743876634089,-500.0,0.00018799,2]
[357189439,1743876634099,-500.0,0.00018799,2]
[357189440,1743876634109,-500.0,0.00018799,2]
[357189441,1743876634119,-500.0,0.00018799,2]
[357189442,1743876634129,-500.0,0.00018799,2]
[357189443,1743876634139,-500.0,0.000188,2]
[357189444,1743876634149,-500.0,0.000188,2]
[357189445,1743876634159,-500.0,0.000188,2]
[357189446,1743876634168,-500.0,0.000188,2]
[357189447,1743876634177,-264.3356738,0.000188,2]
[357189448,1743876634187,-500.0,0.000188,2]
[357189449,1743876634197,-500.0,0.000188,2]
[357189450,1743876634206,-500.0,0.000188,2]
[357189451,1743876634216,-500.0,0.000188,2]
[357189452,1743876634225,-500.0,0.000188,2]
[357189453,1743876634235,-500.0,0.000188,2]
[357189454,1743876634245,-500.0,0.000188,2]
[357189455,1743876634255,-500.0,0.000188,2]
[357189456,1743876634264,-500.0,0.000188,2]
[357189457,1743876634274,-500.0,0.000188,2]
[357189458,1743876634283,-500.0,0.000188,2]
[357189459,1743876634293,-500.0,0.000188,2]
[357189460,1743876634302,-500.0,0.000188,2]
[357189461,1743876634311,-500.0,0.000188,2]
[357189462,1743876634321,-500.0,0.000188,2]
[357189463,1743876634330,-500.0,0.000188,2]
[357189464,1743876634339,-500.0,0.000188,2]
[357189465,1743876634349,-500.0,0.000188,2]
[357189466,1743876634358,-500.0,0.000188,2]
[357189467,1743876634368,-500.0,0.000188,2]
[357189468,1743876634378,-500.0,0.000188,2]
[357189469,1743876634387,-1289.97,0.000188,2]
[357189470,1743876634398,-500.0,0.000188,2]
[357189471,1743876634408,-500.0,0.00018899,2]
[357189472,1743876634417,-500.0,0.00018899,2]
[357189473,1743876634427,-500.0,0.00018899,2]
[357189474,1743876634437,-500.0,0.00018899,2]
[357189475,1743876634446,-500.0,0.000189,2]
[357189476,1743876634456,-500.0,0.000189,2]
[357189477,1743876634465,-500.0,0.000189,2]
[357189478,1743876634475,-500.0,0.000189,2]
[357189479,1743876634485,-500.0,0.000189,2]
[357189480,1743876634495,-500.0,0.000189,2]
[357189481,1743876634506,-288.59197678,0.000189,2]
[357189482,1743876634515,-500.0,0.000189,2]
[357189483,1743876634525,-500.0,0.000189,2]
[357189484,1743876634535,-500.0,0.000189,2]
[357189485,1743876634544,-500.0,0.000189,2]
[357189486,1743876634554,-500.0,0.000189,2]
[357189487,1743876634564,-90.12422504,0.000189,2]
[357189488,1743876634666,-409.87577496,0.000189,2]
[357189489,1743876634676,-500.0,0.000189,2]
[357189490,1743876634686,-500.0,0.000189,2]
[357189491,1743876634696,-500.0,0.000189,2]
[357189492,1743876634706,-500.0,0.000189,2]
[357189493,1743876634716,-500.0,0.000189,2]
[357189494,1743876634725,-500.0,0.000189,2]
[357189495,1743876634735,-500.0,0.000189,2]
[357189496,1743876634744,-500.0,0.000189,2]
[357189497,1743876634754,-500.0,0.000189,2]
[357189498,1743876634763,-500.0,0.000189,2]
[357189499,1743876634773,-500.0,0.000189,2]
[357189500,1743876634782,-500.0,0.000189,2]
[357189501,1743876634791,-500.0,0.00018901,2]
[357189502,1743876634801,-500.0,0.00018979,2]
[357189503,1743876634810,-500.0,0.00018979,2]
[357189504,1743876634819,-500.0,0.00018979,2]
[357189505,1743876634828,-500.0,0.00018979,2]
[357189506,1743876634838,-500.0,0.00018979,2]
[357189507,1743876634848,-500.0,0.00018979,2]
[357189508,1743876634857,-506.87062219,0.00018979,2]
[357189509,1743876634866,-500.0,0.00018979,2]
[357189510,1743876634876,-500.0,0.00018979,2]
[357189511,1743876634885,-500.0,0.00019073,2]
[357189512,1743876634894,-500.0,0.00019073,2]
[357189513,1743876634904,-500.0,0.00019073,2]
[357189514,1743876634913,-500.0,0.00019073,2]
[357189515,1743876634922,-500.0,0.00019073,2]
[357189516,1743876634931,-500.0,0.00019074,2]
[357189517,1743876634940,-500.0,0.00019074,2]
[357189518,1743876634949,-500.0,0.00019074,2]
[357189519,1743876634958,-500.0,0.00019074,2]
[357189520,1743876634967,-500.0,0.00019074,2]
[357189521,1743876634976,-500.0,0.00019074,2]
[357189522,1743876634985,-500.0,0.00019074,2]
[357189523,1743876634994,-500.0,0.00019074,2]
[357189524,1743876635003,-500.0,0.00019074,2]
[357189525,1743876635012,-500.0,0.00019074,2]
[357189526,1743876635022,-527.1,0.00019074,2]
[357189527,1743876635031,-500.0,0.00019074,2]
[357189528,1743876635040,-500.0,0.00019074,2]
[357189529,1743876635050,-500.0,0.00019074,2]
[357189530,1743876635059,-500.0,0.00019074,2]
[357189531,1743876635070,-500.0,0.00019074,2]
[357189532,1743876635079,-500.0,0.00019074,2]
[357189533,1743876635091,-500.0,0.00019074,2]
[357189534,1743876635101,-500.0,0.00019074,2]
[357189535,1743876635110,-500.0,0.00019074,2]
[357189536,1743876635119,-500.0,0.00019074,2]
[357189537,1743876635130,-500.0,0.00019074,2]
[357189538,1743876635139,-298.34730761,0.00019074,2]
[357189539,1743876635148,-500.0,0.00019074,2]
[357189540,1743876635158,-500.0,0.00019074,2]
[357189541,1743876635168,-1289.97,0.00019074,2]
[357189542,1743876635178,-500.0,0.00019074,2]
[357189543,1743876635187,-533.94500821,0.00019173,2]
[357189544,1743876635197,-500.0,0.00019173,2]
[357189545,1743876635206,-500.0,0.00019173,2]
[357189546,1743876635216,-500.0,0.00019173,2]
[357189547,1743876635225,-500.0,0.00019173,2]
[357189548,1743876635234,-500.0,0.00019174,2]
[357189549,1743876635243,-500.0,0.00019174,2]
[357189550,1743876635252,-500.0,0.00019174,2]
[357189551,1743876635261,-500.0,0.00019174,2]
[357189552,1743876635271,-500.0,0.00019174,2]
[357189553,1743876635281,-500.0,0.00019174,2]
[357189554,1743876635291,-500.0,0.00019174,2]
[357189555,1743876635299,-500.0,0.00019174,2]
[357189556,1743876635308,-500.0,0.00019174,2]
[357189557,1743876635317,-500.0,0.00019174,2]
[357189558,1743876635327,-500.0,0.00019174,2]
[357189559,1743876635336,-500.0,0.00019174,2]
[357189560,1743876635345,-500.0,0.00019174,2]
[357189561,1743876635355,-500.0,0.00019174,2]
[357189562,1743876635365,-482.39640487,0.00019174,2]
[357189563,1743876635374,-500.0,0.00019174,2]
[357189564,1743876635383,-500.0,0.00019174,2]
[357189565,1743876635393,-500.0,0.00019174,2]
[357189566,1743876635402,-500.0,0.00019174,2]
[357189567,1743876635411,-500.0,0.00019174,2]
[357189568,1743876635421,-500.0,0.00019174,2]
[357189569,1743876635430,-500.0,0.00019174,2]
[357189570,1743876635440,-500.0,0.00019174,2]
[357189571,1743876635449,-500.0,0.00019174,2]
[357189572,1743876635458,-500.0,0.00019175,2]
[357189573,1743876635468,-500.0,0.00019346,2]
[357189574,1743876635476,-472.82890424,0.00019346,2]
[357189575,1743876635486,-500.0,0.00019347,2]
[357189576,1743876635495,-500.0,0.00019347,2]
[357189577,1743876635504,-279.30379563,0.00019347,2]
[357189605,1743876638379,-220.69620437,0.00019347,2]
[357189606,1743876638389,-500.0,0.00019347,2]
[357189607,1743876638399,-500.0,0.00019347,2]
[357189608,1743876638409,-500.0,0.00019348,2]
[357189609,1743876638418,-500.0,0.00019348,2]
[357189610,1743876638428,-500.0,0.00019348,2]
[357189611,1743876638438,-500.0,0.00019348,2]
[357189612,1743876638447,-500.0,0.00019348,2]
[357189613,1743876638457,-500.0,0.00019348,2]
[357189614,1743876638467,-500.0,0.00019348,2]
[357189615,1743876638476,-500.0,0.00019348,2]
[357189616,1743876638486,-500.0,0.00019348,2]
[357189617,1743876638496,-500.0,0.00019348,2]
[357189618,1743876638505,-500.0,0.00019348,2]
[357189619,1743876638515,-500.0,0.00019348,2]
[357189620,1743876638525,-500.0,0.00019348,2]
[357189621,1743876638534,-1289.97,0.00019348,2]
[357189622,1743876638544,-500.0,0.00019348,2]
[357189623,1743876638553,-198.11613066,0.00019436,2]
[357189624,1743876638563,-200.0,0.00019436,2]
[357189625,1743876638572,-500.0,0.00019447,2]
[357189626,1743876638582,-404.5,0.00019447,2]
[357189627,1743876638591,-500.0,0.00019448,2]
[357189628,1743876638601,-500.0,0.00019448,2]
[357189629,1743876638610,-330.86543934,0.00019448,2]
[357189630,1743876638619,-151.0,0.00019448,2]
[357189631,1743876638628,-500.0,0.00019448,2]
[357189632,1743876638638,-215.34589,0.00019448,2]
[357189633,1743876638647,-215.34589,0.00019448,2]
[357189634,1743876638656,-151.0,0.00019448,2]
[357189635,1743876638666,-151.0,0.00019448,2]
[357189636,1743876638675,-151.0,0.00019448,2]
[357189637,1743876638684,-151.0,0.00019448,2]
[357189638,1743876638694,-165.36102,0.00019448,2]
[357189639,1743876638703,-151.0,0.00019448,2]
[357189640,1743876638713,-151.0,0.00019448,2]
[357189641,1743876638722,-288.07449933,0.00019448,2]
[357189642,1743876638732,-1837.423278,0.00019448,2]
[357189643,1743876638741,-1837.423278,0.00019448,2]
[357189644,1743876638750,-500.0,0.00019448,2]
[357189645,1743876638760,-579.199607,0.00019448,2]
[357189646,1743876638769,-579.199607,0.00019448,2]
[357189647,1743876638778,-358.967043,0.00019448,2]
[357189648,1743876638787,-358.967043,0.00019448,2]
[357189649,1743876638797,-500.0,0.00019448,2]
[357189650,1743876638806,-151.0,0.00019448,2]
[357189651,1743876638815,-151.0,0.00019448,2]
[357189652,1743876638825,-500.0,0.00019448,2]
[357189653,1743876638834,-297.63832632,0.00019448,2]
[357189654,1743876638845,-290.120456,0.00019448,2]
[357189655,1743876638855,-500.0,0.00019448,2]
[357189656,1743876638863,-151.0,0.00019448,2]
[357189657,1743876638978,-500.0,0.00019448,2]
[357189658,1743876638988,-500.0,0.00019448,2]
[357189659,1743876638999,-204.819555,0.00019448,2]
[357189660,1743876639009,-204.819555,0.00019448,2]
[357189661,1743876639018,-500.0,0.00019448,2]
[357189662,1743876639030,-500.0,0.00019448,2]
[357189663,1743876639039,-500.0,0.00019448,2]
[357189664,1743876639048,-500.0,0.00019448,2]
[357189665,1743876639057,-500.0,0.00019448,2]
[357189666,1743876639067,-500.0,0.00019448,2]
[357189667,1743876639075,-500.0,0.00019448,2]
[357189668,1743876639087,-500.0,0.00019448,2]
[357189669,1743876639096,-500.0,0.00019448,2]
[357189670,1743876639106,-430.24035343,0.00019449,2]
[357189671,1743876639116,-500.0,0.00019473,2]
[357189672,1743876639126,-500.0,0.00019473,2]
[357189673,1743876639137,-500.0,0.00019473,2]
[357189674,1743876639148,-151.0,0.00019559,2]
[357189675,1743876639158,-166.43079,0.00019559,2]
[357189676,1743876639168,-151.0,0.00019559,2]
[357189677,1743876639178,-1606.579711,0.00019559,2]
[357189678,1743876639188,-1606.579711,0.00019559,2]
[357189679,1743876639197,-500.0,0.00019621,2]
[357189680,1743876639207,-500.0,0.00019621,2]
[357189681,1743876639216,-500.0,0.00019621,2]
[357189682,1743876639225,-500.0,0.00019621,2]
[357189683,1743876639234,-362.28,0.00019622,2]
[357189684,1743876639244,-500.0,0.00019622,2]
[357189685,1743876639253,-500.0,0.00019622,2]
[357189686,1743876639263,-249.25,0.00019622,2]
[357189687,1743876639274,-500.0,0.00019622,2]
[357189688,1743876639284,-500.0,0.00019622,2]
[357189689,1743876639293,-500.0,0.00019622,2]
[357189690,1743876639302,-500.0,0.00019622,2]
[357189691,1743876639311,-500.0,0.00019622,2]
[357189692,1743876639320,-1289.97,0.00019622,2]
[357189693,1743876639329,-324.8,0.00019721,2]
[357189694,1743876639338,-500.0,0.00019722,2]
[357189695,1743876639348,-558.08593701,0.00019722,2]
[357189696,1743876639357,-500.0,0.00019722,2]
[357189697,1743876639366,-377.8,0.00019722,2]
[357189698,1743876639375,-500.0,0.00019722,2]
[357189699,1743876639384,-500.0,0.00019722,2]
[357189700,1743876639393,-518.5,0.00019722,2]
[357189701,1743876639403,-500.0,0.00019722,2]
[357189702,1743876639412,-500.0,0.00019722,2]
[357189703,1743876639422,-500.0,0.00019722,2]
[357189704,1743876639431,-151.0,0.00019773,2]
[357189705,1743876639441,-500.0,0.00019791,2]
[357189706,1743876639450,-500.0,0.00019791,2]
[357189707,1743876639459,-261.4620889,0.00019791,2]
[357189708,1743876639468,-500.0,0.00019823,2]
[357189709,1743876639478,-500.0,0.00019895,2]
[357189710,1743876639487,-500.0,0.00019895,2]
[357189711,1743876639496,-500.0,0.00019895,2]
[357189712,1743876639506,-500.0,0.00019895,2]
[357189713,1743876639515,-500.0,0.00019896,2]
[357189714,1743876639524,-500.0,0.00019896,2]
[357189715,1743876639534,-500.0,0.00019896,2]
[357189716,1743876639543,-500.0,0.00019896,2]
[357189717,1743876639552,-500.0,0.00019896,2]
[357189718,1743876639562,-500.0,0.00019896,2]
[357189719,1743876639571,-500.0,0.00019896,2]
[357189720,1743876639580,-1289.97,0.00019896,2]
[357189721,1743876639589,-2566.56561211,0.000199,2]
[357189722,1743876639598,-500.0,0.00019902,2]
[357189723,1743876639608,-375.05775775,0.00019902,2]
[357189724,1743876639618,-500.0,0.00019902,2]
[357189725,1743876639628,-500.0,0.00019902,2]
[357189726,1743876639637,-386.08941514,0.00019902,2]
[357189727,1743876639646,-420.0,0.00019909,2]
[357189728,1743876639656,-257.297938,0.00019996,2]
[357189729,1743876639665,-215.34589,0.00019996,2]
[357189730,1743876639675,-215.34589,0.00019996,2]
[357189731,1743876639684,-500.0,0.00019996,2]
[357189732,1743876639694,-599.14,0.00019996,2]
[357189733,1743876639703,-500.0,0.00019996,2]
[357189734,1743876639713,-234.15,0.00019996,2]
[357189735,1743876639723,-500.0,0.00019996,2]
[357189736,1743876639732,-500.0,0.00019996,2]
[357189737,1743876639742,-448.65,0.00019996,2]
[357189738,1743876639752,-151.0,0.00020031,2]
[357189739,1743876639762,-265.493442,0.00020031,2]
[357189740,1743876639772,-265.493442,0.00020031,2]
[357189741,1743876639781,-160.0,0.00020149,2]
[357189742,1743876639791,-500.0,0.00020169,2]
[357189743,1743876639801,-500.0,0.00020169,2]
[357189744,1743876639810,-331.24,0.00020169,2]
[357189745,1743876639820,-395.92,0.00020169,2]
[357189746,1743876639829,-500.0,0.0002017,2]
[357189747,1743876639839,-500.0,0.0002017,2]
[357189748,1743876639848,-545.43944704,0.0002017,2]
[357189749,1743876639857,-500.0,0.0002017,2]
[357189750,1743876639867,-481.5,0.0002017,2]
[357189751,1743876639876,-500.0,0.0002017,2]
[357189752,1743876639885,-500.0,0.0002017,2]
[357189753,1743876639894,-1289.97,0.0002017,2]
[357189754,1743876639903,-151.0,0.0002027,2]
[357189755,1743876639913,-151.0,0.0002027,2]
[357189756,1743876639922,-151.0,0.0002027,2]
[357189757,1743876639931,-151.0,0.0002027,2]
[357189758,1743876639941,-151.0,0.0002027,2]
[357189759,1743876639950,-1837.423278,0.0002027,2]
[357189760,1743876639959,-1837.423278,0.0002027,2]
[357189761,1743876639968,-500.0,0.0002027,2]
[357189762,1743876639977,-579.199607,0.0002027,2]
[357189763,1743876639986,-579.199607,0.0002027,2]
[357189764,1743876639995,-358.967043,0.0002027,2]
[357189765,1743876640005,-358.967043,0.0002027,2]
[357189766,1743876640014,-151.0,0.0002027,2]
[357189767,1743876640023,-151.0,0.0002027,2]
[357189768,1743876640032,-151.0,0.0002027,2]
[357189769,1743876640041,-297.98,0.0002027,2]
[357189770,1743876640051,-204.819555,0.0002027,2]
[357189771,1743876640060,-204.819555,0.0002027,2]
[357189772,1743876640069,-500.0,0.0002027,2]
[357189773,1743876640078,-500.0,0.0002027,2]
[357189774,1743876640091,-205.591481,0.0002027,2]
[357189775,1743876640100,-205.591481,0.0002027,2]
[357189776,1743876640110,-4220.86961225,0.00020271,3]
[357189777,1743876640122,-151.0,0.00020271,2]
[357189778,1743876640136,-151.0,0.00020271,2]
[357189779,1743876640149,-1606.579711,0.00020271,2]
[357189780,1743876640162,-1606.579711,0.00020271,2]
[357189781,1743876640175,-229.8359117,0.0002037,2]
[357189782,1743876640187,-500.0,0.00020443,2]
[357189783,1743876640197,-500.0,0.00020443,2]
[357189784,1743876640210,-500.0,0.00020444,2]
[357189785,1743876640223,-500.0,0.00020444,2]
[357189786,1743876640234,-500.0,0.00020444,2]
[357189787,1743876640246,-500.0,0.00020444,2]
[357189788,1743876640258,-500.0,0.00020444,2]
[357189789,1743876640272,-1289.97,0.00020444,2]
[357189790,1743876640284,-500.0,0.00020544,2]
[357189791,1743876640296,-151.0,0.00020544,2]
[357189792,1743876640308,-265.726754,0.00020544,2]
[357189793,1743876640321,-265.726754,0.00020544,2]
[357189794,1743876640333,-500.0,0.00020544,2]
[357189795,1743876640344,-151.0,0.00020544,2]
[357189797,1743876640356,-502.063868,0.00020544,2]
[357189799,1743876640367,-259.010965,0.00020544,2]
[357189801,1743876640378,-502.063868,0.00020544,2]
[357189802,1743876640390,-174.489692,0.00020544,2]
[357189803,1743876640403,-174.489692,0.00020544,2]
[357189804,1743876640414,-500.0,0.00020544,2]
[357189805,1743876640426,-151.0,0.00020544,2]
[357189806,1743876640439,-151.0,0.00020579,2]
[357189807,1743876640450,-151.0,0.00020579,2]
[357189808,1743876640460,-156.530432,0.00020579,2]
[357189809,1743876640471,-156.530432,0.00020579,2]
[357189810,1743876640483,-247.951799,0.00020579,2]
[357189811,1743876640494,-247.951799,0.00020579,2]
[357189812,1743876640507,-2566.5656119,0.0002059,2]
[357189814,1743876640519,-268.15,0.00020717,2]
[357189817,1743876640530,-500.0,0.00020717,2]
[357189819,1743876640543,-340.3,0.00020718,2]
[357189821,1743876640554,-500.0,0.00020718,2]
[357189823,1743876640566,-500.0,0.00020718,2]
[357189826,1743876640579,-151.0,0.00020718,2]
[357189828,1743876640591,-649.25,0.00020718,2]
[357189830,1743876640605,-477.0,0.00020718,2]
[357189833,1743876640619,-1289.97,0.00020718,2]
[357189835,1743876640630,-577.67686,0.00020718,2]
[357189837,1743876640641,-207.4,0.00020805,2]
[357189839,1743876640651,-500.0,0.00020818,2]
[357189841,1743876640661,-164.229602,0.00020818,2]
[357189843,1743876640672,-586.787765,0.00020818,2]
[357189846,1743876640685,-586.787765,0.00020818,2]
[357189848,1743876640698,-500.0,0.00020818,2]
[357189850,1743876640710,-157.15,0.00020818,2]
[357189853,1743876640722,-8427.31137415,0.000209,2]
[357189855,1743876640732,-151.0,0.000209,2]
[357189857,1743876640742,-500.0,0.00020991,2]
[357189859,1743876640754,-500.0,0.00020992,2]
[357189861,1743876640764,-500.0,0.00020992,2]
[357189863,1743876640777,-1289.97,0.00020992,2]
[357189866,1743876640789,-201.74129723,0.00020999,2]
[357189868,1743876640799,-53512.40090206,0.00021,2]
[357189873,1743876641024,-5139.54810054,0.00021,2]
[357189892,1743876641202,-577.67686,0.00020718,2]
[357189894,1743876641214,-1491.92313999,0.00021,2]
[357189897,1743876641228,-544.33355114,0.00021,2]
[357189899,1743876641241,-11893.37411636,0.00021,2]
[357189902,1743876641253,-196.21593128,0.00021,2]
[357189903,1743876641264,-396.3,0.00021,2]
[357189904,1743876641275,-150.0,0.00021,2]
[357189905,1743876641285,-151.0,0.00021,2]
[357189906,1743876641295,-151.0,0.00021,2]
[357189907,1743876641304,-500.0,0.00021,2]
[357189908,1743876641314,-151.0,0.00021,2]
[357189909,1743876641323,-150.67626691,0.00021,2]
[357189910,1743876641333,-150.95536765,0.00021,2]
[357189911,1743876641343,-500.0,0.00021,2]
[357189912,1743876641353,-151.22872336,0.00021,2]
[357189913,1743876641364,-178.15807417,0.00021,2]
[357189914,1743876641373,-151.0,0.00021,2]
[357189915,1743876641383,-151.0,0.00021,2]
[357189916,1743876641393,-171.217218,0.00021,2]
[357189917,1743876641403,-151.0,0.00021,2]
[357189918,1743876641412,-156.530432,0.00021,2]
[357189919,1743876641422,-156.530432,0.00021,2]
[357189920,1743876641433,-247.951799,0.00021,2]
[357189921,1743876641442,-247.951799,0.00021,2]
[357189922,1743876641452,-265.493442,0.00021,2]
[357189923,1743876641462,-500.0,0.00021,2]
[357189924,1743876641472,-265.493442,0.00021,2]
[357189925,1743876641482,-151.0,0.00021,2]
[357189926,1743876641641,-150.40033142,0.00021,2]
[357189927,1743876641653,-299.84,0.00021,2]
[357189928,1743876641663,-500.0,0.00021,2]
[357189929,1743876641673,-500.0,0.00021,2]
[357189930,1743876641683,-215.34589,0.00021,2]
[357189931,1743876641692,-500.0,0.00021,2]
[357189932,1743876641702,-215.34589,0.00021,2]
[357189933,1743876641712,-500.0,0.00021,2]
[357189934,1743876641721,-151.0,0.00021,2]
[357189935,1743876641731,-500.0,0.00021,2]
[357189936,1743876641741,-183.65314398,0.00021,2]
[357189937,1743876641751,-1606.579711,0.00021,2]
[357189938,1743876641761,-1606.579711,0.00021,2]
[357189939,1743876641770,-151.0,0.00021,2]
[357189940,1743876641780,-151.0,0.00021,2]
[357189941,1743876641790,-151.0,0.00021,2]
[357189942,1743876641799,-151.0,0.00021,2]
[357189943,1743876641810,-1837.423278,0.00021,2]
[357189944,1743876641820,-1837.423278,0.00021,2]
[357189945,1743876641832,-579.199607,0.00021,2]
[357189946,1743876641843,-579.199607,0.00021,2]
[357189947,1743876641852,-358.967043,0.00021,2]
[357189948,1743876641863,-358.967043,0.00021,2]
[357189949,1743876641872,-151.0,0.00021,2]
[357189950,1743876641882,-151.0,0.00021,2]
[357189951,1743876641892,-586.787765,0.00021,2]
[357189952,1743876641901,-586.787765,0.00021,2]
[357189953,1743876641911,-151.0,0.00021,2]
[357189954,1743876641923,-151.0,0.00021,2]
[357189955,1743876641934,-500.0,0.00021,2]
[357189956,1743876641943,-500.0,0.00021,2]
[357189957,1743876641953,-500.0,0.00021,2]
[357189958,1743876641962,-150.09,0.00021,2]
[357189959,1743876641971,-500.0,0.00021,2]
[357189960,1743876641980,-150.09,0.00021,2]
[357189961,1743876641989,-500.0,0.00021,2]
[357189962,1743876641998,-200.53632234,0.00021,2]
[357189963,1743876642008,-204.819555,0.00021,2]
[357189964,1743876642018,-204.819555,0.00021,2]
[357189965,1743876642027,-265.726754,0.00021,2]
[357189966,1743876642037,-265.726754,0.00021,2]
[357189967,1743876642046,-190.72965981,0.00021,2]
[357189968,1743876642055,-157.64167934,0.00021,2]
[357189969,1743876642064,-187.74860332,0.00021,2]
[357189970,1743876642073,-222.26035781,0.00021,2]
[357189971,1743876642083,-500.0,0.00021,2]
[357189972,1743876642095,-151.0,0.00021,2]
[357189973,1743876642104,-500.0,0.00021,2]
[357189974,1743876642114,-500.0,0.00021,2]
[357189975,1743876642123,-151.0,0.00021,2]
[357189976,1743876642133,-502.063868,0.00021,2]
[357189977,1743876642142,-502.063868,0.00021,2]
[357189978,1743876642152,-174.489692,0.00021,2]
[357189979,1743876642162,-174.489692,0.00021,2]
[357189980,1743876642172,-151.0,0.00021,2]
[357189981,1743876642181,-205.591481,0.00021,2]
[357189982,1743876642191,-226.43822373,0.00021,2]
[357189983,1743876642200,-500.0,0.00021,2]
[357189984,1743876642209,-150.09,0.00021,2]
[357189985,1743876642218,-205.591481,0.00021,2]
[357189986,1743876642227,-500.0,0.00021,2]
[357189987,1743876642237,-577.67686,0.00021,2]
[357189988,1743876642249,-809.33518391,0.00021027,2]
[357189989,1743876642259,-730.96385774,0.00021027,2]
[357189990,1743876642272,-500.0,0.00021027,2]
[357189991,1743876642282,-508.635012,0.00021027,2]
[357189992,1743876642293,-500.0,0.00021027,2]
[357189993,1743876642304,-500.0,0.00021027,2]
[357189994,1743876642315,-607.2571296,0.00021027,2]
[357189995,1743876642326,-500.0,0.00021027,2]
[357189996,1743876642335,-500.0,0.00021027,2]
[357189997,1743876642345,-500.0,0.00021027,2]
[357189998,1743876642354,-500.0,0.00021027,2]
[357189999,1743876642363,-790.88492782,0.00021027,2]
[357190000,1743876642372,-500.0,0.00021027,2]
[357190001,1743876642381,-500.0,0.00021027,2]
[357190002,1743876642390,-500.0,0.00021027,2]
[357190003,1743876642399,-649.92,0.00021027,2]
[357190004,1743876642408,-760.32333484,0.00021027,2]
[357190005,1743876642417,-500.0,0.00021027,2]
[357190006,1743876642427,-500.0,0.00021055,2]
[357190007,1743876642437,-500.0,0.00021055,2]
[357190008,1743876642446,-500.0,0.00021055,2]
[357190009,1743876642455,-500.0,0.00021055,2]
[357190010,1743876642464,-500.0,0.00021055,2]
[357190011,1743876642473,-500.0,0.00021055,2]
[357190012,1743876642482,-500.0,0.00021055,2]
[357190013,1743876642491,-500.0,0.00021055,2]
[357190014,1743876642500,-912.77676807,0.00021055,2]
[357190015,1743876642509,-500.0,0.00021055,2]
[357190016,1743876642518,-450.71521565,0.00021055,2]
[357190017,1743876642536,-577.67686,0.00021,2]
[357190018,1743876642545,-218.63276781,0.00021055,2]
[357190019,1743876642555,-500.0,0.00021082,2]
[357190020,1743876642564,-647.01695008,0.00021082,2]
[357190021,1743876642574,-700.04,0.00021082,2]
[357190022,1743876642583,-608.32304883,0.00021082,2]
[357190023,1743876642593,-500.0,0.00021082,2]
[357190024,1743876642602,-500.0,0.00021082,2]
[357190025,1743876642612,-500.0,0.00021082,2]